[Event "27th Sharjah International Rapid Chess-c"]
[Site "Sharjah"]
[Date "2022.04.07"]
[Round "5.26"]
[White "Mohamed Saeed Laily"]
[Black "Rashid Husain Alhammadi"]
[Result "1/2-1/2"]
[ECO "D00"]
[WhiteElo "2055"]
[BlackElo "1184"]
[Annotator "TA"]
[PlyCount "127"]
[EventDate "2022.04.07"]
[EventType "rapid"]
[EventCountry "UAE"]
[SourceTitle "playchess.com"]
[Source "ChessBase"]
[SourceQuality "1"]
[TimeControl "600+3"]

{[%evp 76,127,618,565,605,578,535,386,294,0,0,0,0,0,0,-6420,-12834,-12833,-8064,-5420,-1805,-3855,-704,-330,0,-2477,0,-1604,0,-1446,0,-1162,0,-1324,0,-481,0,-1162,0,-1161,0,-940,0,-532,0,-479,0,-471,0,-412,0,-412,0,-230]} 1. d4 {[%emt 0:00:02]} d5 {[%emt 0:00:00]} 2. Bf4 {[%emt 0:00:00]} c5 {[%emt 0:00:01]} 3. e3 {[%emt 0:00:01]} cxd4 {[%emt 0:00:01]} 4. exd4 {[%emt 0:00:01]} Nf6 {[%emt 0:00:02]} 5. c3 {[%emt 0:00:02]} Nc6 {[%emt 0:00:01]} 6. Nf3 {[%emt 0:00:04]} Bf5 {[%emt 0:00:03]} 7. Bd3 {[%emt 0:00:02]} Bg6 {[%emt 0:00:04]} 8. Ne5 {[%emt 0:00:53]} Nxe5 {[%emt 0:00:11]} 9. Bxe5 {[%emt 0:00:51]} Bxd3 {[%emt 0:00:04]} 10. Qxd3 {[%emt 0:00:01]} Ne4 {[%emt 0:00:03]} 11. f3 {[%emt 0:00:12]} Nd6 {[%emt 0:00:03]} 12. Bxd6 {[%emt 0:00:24]} Qxd6 {[%emt 0:00:03]} 13. O-O {[%emt 0:00:07]} e6 {[%emt 0:00:02]} 14. Nd2 {[%emt 0:00:18]} Qd7 {[%emt 0:00:36]} 15. f4 {[%emt 0:01:04]} Bd6 {[%emt 0:00:08]} 16. f5 {[%emt 0:00:24]} exf5 {[%emt 0:00:14]} 17. Qxf5 {[%emt 0:00:19]} Qxf5 {[%emt 0:00:03]} 18. Rxf5 {[%emt 0:00:00]} O-O {[%emt 0:00:06]} 19. Rxd5 {[%emt 0:00:03]} Bf4 {[%emt 0:00:01]} 20. Nf3 {[%emt 0:00:27]} Rfe8 {[%emt 0:00:05]} 21. Kf2 {[%emt 0:00:42]} Be3+ {[%emt 0:00:07]} 22. Kf1 {[%emt 0:00:03]} Bf4 {[%emt 0:00:10]} 23. Rd7 {[%emt 0:00:08]} Re3 {[%emt 0:00:10]} 24. Rxb7 {[%emt 0:00:25]} Rae8 {[%emt 0:00:10]} 25. Rxa7 {[%emt 0:00:37]} g5 {[%emt 0:00:22]} 26. Re1 {[%emt 0:00:19]} Rxe1+ {[%emt 0:00:10]} 27. Nxe1 {[%emt 0:00:01]} Bxh2 {[%emt 0:00:04]} 28. Ra5 {[%emt 0:01:27]} h6 {[%emt 0:00:08]} 29. Nc2 {[%emt 0:00:29]} Bg3 {[%emt 0:00:09]} 30. Rf5 {[%emt 0:00:14]} Kg7 {[%emt 0:00:09]} 31. Rf3 {[%emt 0:00:02]} Bf4 {[%emt 0:00:08]} 32. c4 {[%emt 0:00:21]} h5 {[%emt 0:00:04]} 33. d5 {[%emt 0:00:12]} Bd6 {[%emt 0:00:03]} 34. b4 {[%emt 0:00:10]} g4 {[%emt 0:00:03]} 35. Re3 {[%emt 0:00:25]} Rxe3 {[%emt 0:00:02]} 36. Nxe3 {[%emt 0:00:01]} Bxb4 {[%emt 0:00:01]} 37. Ke2 {[%emt 0:00:16]} Kg6 {[%emt 0:00:09]} 38. a4 {[%emt 0:00:06]} f5 $2 {[%emt 0:00:04]} (38... Kf6) 39. Nc2 $1 $18 {[%emt 0:00:13]} Bc5 {[%emt 0:00:08]} 40. a5 {[%emt 0:00:06]} f4 {[%emt 0:00:09]} 41. a6 {[%emt 0:00:01]} h4 {[%emt 0:00:02] [#]} 42. Kf1 $2 {[%emt 0:00:17]} (42. Ne1 $1 $18 {[%cal Re1d3]}) 42... h3 {[%emt 0:01:10]} 43. gxh3 {[%emt 0:00:01]} gxh3 {[%emt 0:00:01]} 44. Ne1 {[%emt 0:00:07]} Kf5 {[%emt 0:00:23]} 45. Nd3 $2 {[%emt 0:00:13][%mdl 8192] [#]} (45. Nf3 $11) 45... f3 $1 $19 {[%emt 0:00:23]} 46. Nf2 {[%emt 0:00:01]} h2 {[%emt 0:00:07]} 47. Nh1 {[%emt 0:00:03]} Ke5 {[%emt 0:00:40]} (47... Bg1 $142 48. Ng3+ Ke5) 48. Ng3 {[%emt 0:00:05]} Kd6 {[%emt 0:00:14]} (48... Bg1 $142 49. Ke1 Be3) 49. Nh1 {[%emt 0:00:06]} Ke5 $2 {[%emt 0:00:04]} (49... Ba7 $19 {White must now prevent ...Be3.} 50. Ke1 Bc5) 50. Ke1 $2 {[%emt 0:00:03][%mdl 8192]} (50. Ng3 $11 Kd6 51. Nf5+ Kd7 52. Ng3) 50... Kd6 $2 {[%emt 0:00:07]} (50... Bg1 $19 51. Ng3 Kd6) 51. Kd2 $2 {[%emt 0:00:02][%mdl 8192]} (51. Kf1 $11 Kc7 52. Ng3) 51... Ke5 $2 {[%emt 0:00:08]} (51... f2 52. Ke2 $11) (51... Kc7 $19 52. Ng3 Kb6) 52. Kd3 $2 {[%emt 0:00:02][%mdl 8192]} (52. Ke1 $11) 52... Kd6 {[%emt 0:00:03]} (52... f2 53. Ke2 $11) 53. Kd2 $1 {[%emt 0:00:04]} Ke5 $2 {[%emt 0:00:04]} (53... f2 54. Ke2 $11) (53... Bg1 $19 54. Ng3 Kc7) 54. Kd3 $2 {[%emt 0:00:03][%mdl 8192]} (54. Ke1 $11) 54... Kd6 {[%emt 0:00:02]} (54... f2 55. Ke2 $11) (54... Bg1 $142 {Hoping for ...Bb6.} 55. Kd2 Bd4) 55. Kd2 $1 $19 {[%emt 0:00:01]} Ke5 {[%emt 0:00:02]} (55... f2 56. Ke2 $11) (55... Kd7 $142 56. Ng3 Kc7) 56. Ke1 $19 {[%emt 0:00:05]} Kd6 $2 {[%emt 0:00:02]} (56... Bb6 $19 57. Kd2 Ba7) 57. Kd2 $2 {[%emt 0:00:03][%mdl 8192]} (57. Kf1 $11 Kc7 58. Ke1 (58. Ng3 $2 Kb6 $19)) 57... Ke5 $2 {[%emt 0:00:01]} (57... f2 58. Ke2 $11) (57... Kc7 $19 58. Ng3 Kb6) 58. Kd3 $2 {[%emt 0:00:01][%mdl 8192]} (58. Ke1 $11) 58... Kd6 $2 {[%emt 0:00:01]} (58... f2 59. Ke2 $11) ({Black should play} 58... Ba7 $19 59. Kd2 Bc5) 59. Ng3 $2 {[%emt 0:00:06][%mdl 8192]} (59. Kd2 $1 $11 {and White stays safe.} Kc7 60. Kd3) 59... Ke5 {[%emt 0:00:09]} 60. Nh1 {[%emt 0:00:01]} Kd6 $2 {[%emt 0:00:02]} (60... f2 61. Ke2 $11) ({Better is} 60... Ba7 $19 61. Kd2 Bd4) 61. Kd2 $2 {[%emt 0:00:05][%mdl 8192]} (61. Ng3 $11 Kd7 62. Kd2 (62. Ke4 $2 f2 $19)) 61... Ke5 {[%emt 0:00:01]} (61... f2 62. Ke2 $11) 62. Kd3 {[%emt 0:00:02]} Kd6 $2 {[%emt 0:00:01]} ({And not} 62... f2 63. Ke2 $11) ({Black should try} 62... Ba7 $19 {aiming for ...Kd6.} 63. Kd2 Kd6) 63. Kd2 $2 {[%emt 0:00:00][%mdl 8192]} (63. Ng3 $11 {and White has nothing to worry.} Kd7 64. Kd2 (64. Ke4 $2 f2 $19)) 63... Ke5 {[%emt 0:00:01]} ({Stronger than} 63... f2 64. Ke2 $11) (63... Kd7 $142 {Threatens to win with ...Kc7.} 64. Ke1 Kc7) 64. Kd3 1/2-1/2

[Event "27th Sharjah International Rapid Chess-c"]
[Site "Sharjah"]
[Date "2022.04.07"]
[Round "5.28"]
[White "Faisal, Ali"]
[Black "Ahlam Rashed"]
[Result "1-0"]
[ECO "C02"]
[WhiteElo "1858"]
[BlackElo "1244"]
[Annotator "NA RC"]
[PlyCount "85"]
[EventDate "2022.04.07"]
[EventType "rapid"]
[EventCountry "UAE"]
[SourceTitle "playchess.com"]
[Source "ChessBase"]
[SourceQuality "1"]
[TimeControl "600+3"]

1. e4 {[%emt 0:00:02]} e6 {[%emt 0:00:02]} 2. d4 {[%emt 0:00:04]} d5 {[%emt 0:00:01]} 3. e5 {[%emt 0:00:02]} c5 {[%emt 0:00:02]} 4. Nf3 {[%emt 0:00:03]} Nc6 {[%emt 0:00:01]} 5. c3 {[%emt 0:00:01]} Qb6 {[%emt 0:00:02]} 6. Be2 {[%emt 0:00:13]} cxd4 {[%emt 0:00:06]} 7. cxd4 {[%emt 0:00:02]} Bd7 {[%emt 0:00:08]} 8. Nc3 {[%emt 0:00:03]} Nge7 {[%emt 0:00:03]} 9. Na4 {[%emt 0:00:33]} Qc7 {[%emt 0:00:27]} 10. Nc5 {[%emt 0:00:08]} Nf5 {[%emt 0:00:04]} 11. Nxd7 {[%emt 0:00:05]} Qxd7 {[%emt 0:00:02]} 12. O-O {[%emt 0:00:10]} Bb4 {[%emt 0:00:27]} 13. a3 {[%emt 0:00:05]} Ba5 {[%emt 0:00:05]} 14. b4 {[%emt 0:00:08]} Bb6 {[%emt 0:00:04]} 15. Bb2 {[%emt 0:00:02]} O-O {[%emt 0:00:08]} 16. Bd3 {[%emt 0:00:07]} h6 {[%emt 0:00:41]} 17. Bxf5 {[%emt 0:00:04]} exf5 {[%emt 0:00:02]} 18. Qd3 {[%emt 0:00:15]} Qe6 {[%emt 0:00:12]} 19. Nh4 {[%emt 0:00:14]} Ne7 {[%emt 0:00:15]} 20. f4 {[%emt 0:00:18]} Rac8 {[%emt 0:00:08]} 21. Rac1 {[%emt 0:00:15]} a6 {[%emt 0:00:08]} 22. Rxc8 {[%emt 0:00:30]} Rxc8 {[%emt 0:00:08]} 23. Rc1 {[%emt 0:00:02]} Rxc1+ {[%emt 0:00:11]} 24. Bxc1 {[%emt 0:00:02]} Qc6 {[%emt 0:00:12]} 25. Bb2 {[%emt 0:00:39]} Qc4 {[%emt 0:00:36]} 26. Qxc4 {[%emt 0:00:14]} dxc4 {[%emt 0:00:02]} 27. Kf1 {[%emt 0:00:12]} Nd5 {[%emt 0:00:03]} 28. Nxf5 {[%emt 0:00:07]} Nxf4 {[%emt 0:00:03]} 29. Ne3 {[%emt 0:00:16]} Ne6 {[%emt 0:00:56]} 30. Nc2 {[%emt 0:01:50]} Nf4 {[%emt 0:00:56]} 31. g3 {[%emt 0:00:35]} Ne6 {[%emt 0:00:46]} 32. Ke2 {[%emt 0:00:24]} Kf8 {[%emt 0:00:06]} 33. Ke3 {[%emt 0:00:40]} Ke7 {[%emt 0:00:48]} 34. a4 {[%emt 0:00:03]} Nc7 {[%emt 0:00:14]} 35. Ke4 {[%emt 0:00:17]} Ke6 {[%emt 0:01:24]} 36. Ne3 {[%emt 0:00:15]} f6 {[%emt 0:00:49]} 37. d5+ {[%emt 0:00:18]} Kd7 {[%emt 0:00:43]} 38. e6+ {[%emt 0:00:10]} Ke7 {[%emt 0:00:23]} 39. Nxc4 {[%emt 0:00:08]} f5+ {[%emt 0:00:21]} 40. Ke5 {[%emt 0:01:06]} Na8 {[%emt 0:00:04]} 41. d6+ {[%emt 0:00:03]} Ke8 {[%emt 0:00:03]} 42. e7 {[%emt 0:00:18]} Bg1 {[%emt 0:00:03]} 43. Ke6 1-0

[Event "27th Sharjah International Rapid Chess-c"]
[Site "Sharjah"]
[Date "2022.04.07"]
[Round "5.29"]
[White "Nookala, Nikhil Sriram"]
[Black "Mastrokoukos, George"]
[Result "0-1"]
[ECO "B40"]
[WhiteElo "1266"]
[BlackElo "2306"]
[Annotator "TA"]
[PlyCount "90"]
[EventDate "2022.04.07"]
[EventType "rapid"]
[EventCountry "UAE"]
[SourceTitle "playchess.com"]
[Source "ChessBase"]
[SourceQuality "1"]
[TimeControl "600+3"]

{[%evp 32,90,30,13,14,-4,-1,-50,-29,-34,0,-4,-6,-6,-6,0,0,0,0,0,0,-4,17,-42,15,-91,-93,-172,-171,-169,-166,-338,-306,-490,-286,-29974,-29975,-29973,-29976,-29976,-29977,-29980,-29981,-29981,-29981,-29981,-29982,-29982,-29983,-29983,-29984,-29984,-29985,-29985,-29986,-29986,-29987,-29988,-29989,-29991,-29988]} 1. e4 {[%emt 0:00:03]} c5 {[%emt 0:00:02]} 2. Nf3 {[%emt 0:00:02]} e6 {[%emt 0:00:01]} 3. d4 {[%emt 0:00:02]} cxd4 4. Nxd4 {[%emt 0:00:02]} Nf6 {[%emt 0:00:01]} 5. Nc3 {[%emt 0:00:02]} Nc6 {[%emt 0:00:02]} 6. Ndb5 {[%emt 0:00:01]} d6 {[%emt 0:00:02]} 7. Bf4 {[%emt 0:00:02]} e5 {[%emt 0:00:01]} 8. Bg5 {[%emt 0:00:01]} a6 {[%emt 0:00:00]} 9. Bxf6 {[%emt 0:00:03]} gxf6 {[%emt 0:00:03]} 10. Na3 {[%emt 0:00:01]} b5 {[%emt 0:00:15]} 11. Nd5 {[%emt 0:00:04]} Bg7 {[%emt 0:00:01]} 12. c3 {[%emt 0:00:01]} Ne7 {[%emt 0:00:04]} 13. Nc2 {[%emt 0:00:06]} f5 {[%emt 0:00:18]} 14. exf5 {[%emt 0:00:07]} Bxf5 {[%emt 0:00:16]} 15. Nce3 {[%emt 0:00:03]} Be6 {[%emt 0:00:05]} 16. Nxe7 {[%emt 0:00:20]} Qxe7 {[%emt 0:00:05]} 17. Bd3 {[%emt 0:00:01]} d5 {[%emt 0:00:36] Against Be4. B33: Sicilian: Pelikan and Sveshnikov Variations.} 18. Nf5 {[%emt 0:00:10]} Qf6 {[%emt 0:01:11] [#]} 19. Ng3 $146 {[%emt 0:01:07]} (19. Nxg7+ $11 {was preferrable.} Qxg7 20. O-O) ({Predecessor:} 19. Nxg7+ Qxg7 20. g3 e4 21. Be2 O-O 22. Qd4 Rfc8 23. Kd2 Qg5+ 24. Qe3 Qe7 25. a3 {½-½ (45) Bizopoulos,A (2141)-Souleidis,G (2431) Paleochora 2008}) 19... e4 {[%emt 0:00:55] Black is slightly better.} 20. Be2 {[%emt 0:00:11]} Qe5 {[%emt 0:00:22]} 21. O-O {[%emt 0:00:55]} O-O {[%emt 0:00:29]} 22. f4 {[%emt 0:00:11]} exf3 {[%emt 0:00:17]} 23. Bxf3 {[%emt 0:00:04]} b4 {[%emt 0:00:23]} 24. cxb4 Qxb2 {[%emt 0:00:03] aiming for ...Bd4+.} 25. Rb1 {[%emt 0:00:46]} Qxa2 {[%emt 0:00:04]} 26. Kh1 {[%emt 0:00:13]} Rad8 {[%emt 0:00:17]} 27. Bg4 {[%emt 0:00:13]} (27. Be2 $11) 27... Qc4 {[%emt 0:00:19]} (27... d4 $15) 28. Bxe6 {[%emt 0:00:09]} (28. Be2 $11 {remains equal.} Qd4 29. Qxd4 Bxd4 30. Bxa6) 28... fxe6 $17 {[%emt 0:00:01] Black keeps a firm grip on the game.} 29. Qh5 {[%emt 0:00:17] [#]} (29. Re1 $17) 29... Rxf1+ $1 $19 {[%emt 0:01:13]} 30. Rxf1 {[%emt 0:00:01]} Rf8 {[%emt 0:00:04] Inhibits Qf7+. Active counter play!} ({Stronger than} 30... Qxb4 31. Qf7+ Kh8 32. Nh5 $17) 31. Rxf8+ {[%emt 0:01:02]} (31. Rb1 {was called for.}) 31... Kxf8 {[%emt 0:00:01]} 32. h3 $2 {[%emt 0:00:23]} (32. Qg5 {might work better.} Qxb4 33. h3) 32... Qxb4 {[%emt 0:00:43]} (32... Qc1+ $142 33. Kh2 Qf4) 33. Qxh7 $2 {[%emt 0:00:31] [#]} (33. Qf3+ $19 Ke7 34. Qe3) 33... Qe1+ {[%emt 0:00:02] Black mates.} 34. Kh2 {[%emt 0:00:02]} Be5 {[%emt 0:00:04][%csl Ge1][%cal Re5g3]} 35. Qh6+ {[%emt 0:00:11]} Ke7 {[%emt 0:00:04][%csl Ge1][%cal Re5g3]} 36. Qh4+ {[%emt 0:00:16]} Kd7 {[%emt 0:00:17]} 37. Qa4+ {[%emt 0:00:18]} Kd8 {[%emt 0:00:14][%csl Ge1][%cal Re5g3]} 38. Qh4+ {[%emt 0:00:16]} Kc8 {[%emt 0:00:18]} 39. Qg4 {[%emt 0:00:33]} Qxg3+ {[%emt 0:00:36]} 40. Qxg3 {[%emt 0:00:02]} Bxg3+ {[%emt 0:00:01]} 41. Kxg3 {[%emt 0:00:03] K3P-KPP} a5 {[%emt 0:00:01]} 42. h4 {[%emt 0:00:10]} a4 {[%emt 0:00:01]} 43. Kf4 {[%emt 0:00:02]} a3 {[%emt 0:00:03]} 44. Ke5 {[%emt 0:00:01]} a2 {[%emt 0:00:02]} 45. Kxe6 {[%emt 0:00:02]} a1=Q {[%emt 0:00:02] Weighted Error Value: White=0.38/Black=0.17 (very precise)} 0-1

[Event "27th Sharjah International Rapid Chess-c"]
[Site "Sharjah"]
[Date "2022.04.07"]
[Round "5.30"]
[White "Bashkite, Viktoria"]
[Black "Margaryan, Mikayel"]
[Result "0-1"]
[ECO "A25"]
[WhiteElo "2105"]
[BlackElo "1403"]
[Annotator "TA"]
[PlyCount "54"]
[EventDate "2022.04.07"]
[EventType "rapid"]
[EventCountry "UAE"]
[SourceTitle "playchess.com"]
[Source "ChessBase"]
[SourceQuality "1"]
[TimeControl "600+3"]

{[%evp 16,54,7,0,14,0,25,29,27,25,29,22,39,41,59,0,0,0,0,-41,0,0,4,4,15,0,0,4,8,-46,-10,-18,0,-2,0,-23,-25,-56,0,0,0]} 1. c4 {[%emt 0:00:04]} e5 {[%emt 0:00:05]} 2. Nc3 {[%emt 0:00:03]} g6 {[%emt 0:00:00]} 3. g3 {[%emt 0:00:03]} Bg7 {[%emt 0:00:02]} 4. Bg2 {[%emt 0:00:01]} Nc6 {[%emt 0:00:11]} 5. e3 {[%emt 0:00:09]} Nf6 {[%emt 0:00:25]} 6. Nge2 {[%emt 0:00:01]} O-O {[%emt 0:00:03]} 7. O-O {[%emt 0:00:02]} d6 {[%emt 0:00:06]} 8. d4 {[%emt 0:00:25]} exd4 {[%emt 0:00:50]} 9. exd4 {[%emt 0:00:03]} Re8 {[%emt 0:00:04] E61: King's Indian: Early deviations for White, including Smyslov System.} 10. h3 {[%emt 0:00:36]} h5 {[%emt 0:01:40]} 11. Bg5 {[%emt 0:00:16]} Ne7 {[%emt 0:00:41] White has an edge.} 12. Qd2 {[%emt 0:00:54]} Bf5 {[%emt 0:01:55][%cal Bc8f5,Bf5d3,Bd3c4][%mdl 32]} 13. Kh2 {[%emt 0:00:39]} Qd7 {[%emt 0:02:13]} 14. d5 {[%emt 0:01:14]} Nh7 {[%emt 0:01:55] [#]} 15. Bh6 $146 {[%emt 0:00:45]} (15. Bf4 $14) ({Predecessor:} 15. Be3 Qd8 16. Nd4 Bd7 17. Rae1 Nf5 18. Nxf5 Bxf5 19. Bd4 Bxd4 20. Qxd4 a6 21. f4 {1-0 (51) Cvitan,O (2570)-Jurkovic,A (2330) Pula 2002}) 15... Bxh6 $11 {[%emt 0:00:12]} 16. Qxh6 {[%emt 0:00:03]} Bd3 {[%emt 0:00:01]} 17. Qf4 {[%emt 0:01:16]} Qf5 {[%emt 0:00:14]} (17... Bxe2 $5 18. Nxe2 Nxd5 $1 $11) 18. Rfe1 {[%emt 0:01:42][%cal Bf1e1,Be1e4,Be4c4][%mdl 32]} Qxf4 {[%emt 0:00:09]} 19. Nxf4 {[%emt 0:00:02]} Bxc4 {[%emt 0:00:04]} 20. Re4 {[%emt 0:00:09]} Ba6 {[%emt 0:00:07]} 21. Rae1 {[%emt 0:00:44]} Kf8 {[%emt 0:00:01]} 22. b4 {[%emt 0:00:10]} ({Better is} 22. Ra4 $1 $11) 22... b6 {[%emt 0:00:05] White should prevent ...Nf6.} (22... b5 $5 {[%cal Rh7f6]}) 23. b5 {[%emt 0:00:16]} Bb7 {[%emt 0:00:03]} 24. Rc4 $1 {[%emt 0:00:15]} Rac8 {[%emt 0:00:03]} 25. h4 {[%emt 0:00:56]} Nf6 {[%emt 0:00:01]} 26. Bh3 {[%emt 0:00:13] Prevents Nd7.} Nf5 {[%emt 0:00:06]} ({Of course not} 26... Bxd5 27. Ra4 (27. Rd4 c5 $15) 27... Rcd8 {[#]} 28. Rxe7 $1 Rxe7 29. Nfxd5 (29. Ncxd5 Nxd5 30. Nxd5 Re2 $11) 29... Nxd5 30. Nxd5 $11) (26... Ng4+ $15 27. Bxg4 hxg4) 27. Rxe8+ {[%emt 0:00:11]} Kxe8 {[%emt 0:00:02][%mdl 32768] Weighted Error Value: White=0.18 (very precise) /Black=0.13 (very precise) . Sensor Board Error (Ke4/e5)?} 0-1

[Event "27th Sharjah International Rapid Chess-c"]
[Site "Sharjah"]
[Date "2022.04.07"]
[Round "5.31"]
[White "Sameir, Ramez"]
[Black "Maurya, Vaidya"]
[Result "1-0"]
[ECO "B21"]
[WhiteElo "1892"]
[BlackElo "1162"]
[Annotator "NA RC"]
[PlyCount "43"]
[EventDate "2022.04.07"]
[EventType "rapid"]
[EventCountry "UAE"]
[SourceTitle "playchess.com"]
[Source "ChessBase"]
[SourceQuality "1"]
[TimeControl "600+3"]

1. e4 {[%emt 0:00:02]} c5 {[%emt 0:00:02]} 2. d4 {[%emt 0:00:00]} cxd4 {[%emt 0:00:05]} 3. c3 {[%emt 0:00:01]} dxc3 {[%emt 0:00:03]} 4. Nxc3 {[%emt 0:00:01]} e5 {[%emt 0:00:05]} 5. Nf3 {[%emt 0:00:02]} Nc6 {[%emt 0:00:01]} 6. Bc4 {[%emt 0:00:03]} Bc5 {[%emt 0:00:06]} 7. Bxf7+ {[%emt 0:00:53]} Kxf7 {[%emt 0:00:03]} 8. Qd5+ {[%emt 0:00:00]} Ke8 {[%emt 0:00:04]} 9. Qxc5 {[%emt 0:00:04]} Qe7 {[%emt 0:00:12]} 10. Qc4 {[%emt 0:00:23]} Nf6 {[%emt 0:00:05]} 11. Bg5 {[%emt 0:00:05]} Qb4 {[%emt 0:00:08]} 12. Qe2 {[%emt 0:01:02]} d6 {[%emt 0:00:10]} 13. Bxf6 {[%emt 0:00:06]} gxf6 {[%emt 0:00:01]} 14. O-O {[%emt 0:00:10]} Bg4 {[%emt 0:00:02]} 15. Nd5 {[%emt 0:00:01]} Bxf3 {[%emt 0:00:04]} 16. Qxf3 {[%emt 0:00:08]} Nd4 {[%emt 0:00:15]} 17. Qh5+ {[%emt 0:00:09]} Kd7 {[%emt 0:00:11]} 18. Qf7+ {[%emt 0:00:11]} Kc6 {[%emt 0:00:04]} 19. Qc7+ {[%emt 0:00:27]} Kb5 {[%emt 0:00:09]} 20. Qxb7+ {[%emt 0:00:03]} Ka5 {[%emt 0:00:08]} 21. Qxb4+ {[%emt 0:00:05]} Ka6 {[%emt 0:00:02]} 22. Nc7# 1-0

[Event "27th Sharjah International Rapid Chess-c"]
[Site "Sharjah"]
[Date "2022.04.07"]
[Round "5.32"]
[White "Dhulipala, Sudheer S"]
[Black "Abdulrahman Mohammad, Al Taher"]
[Result "0-1"]
[ECO "B23"]
[WhiteElo "1840"]
[BlackElo "2017"]
[Annotator "TA"]
[PlyCount "76"]
[EventDate "2022.04.07"]
[EventType "rapid"]
[EventCountry "UAE"]
[SourceTitle "playchess.com"]
[Source "ChessBase"]
[SourceQuality "1"]
[TimeControl "600+3"]

{[%evp 10,76,22,4,21,10,15,-58,0,-344,-334,-324,-130,-186,-178,-148,-168,-218,-203,-220,-118,-456,-439,-463,-480,-567,-562,-536,-537,-563,-521,-702,-658,-775,-434,-467,-287,-309,-310,-353,-346,-745,-708,-932,-931,-928,-922,-897,-895,-874,-779,-1075,-1207,-1193,-1192,-1617,-1577,-3380,-3035,-2931,-2681,-29986,-29987,-29988,-29989,-29990,-29991,-29991,-29992]} 1. e4 {[%emt 0:00:01]} c5 {[%emt 0:00:00]} 2. Nc3 {[%emt 0:00:01]} Nc6 {[%emt 0:00:01]} 3. f4 {[%emt 0:00:04]} g6 {[%emt 0:00:07]} 4. Nf3 {[%emt 0:00:02]} Bg7 {[%emt 0:00:04]} 5. Bb5 {[%emt 0:00:02]} d6 {[%emt 0:00:02]} 6. O-O {[%emt 0:00:03]} Nf6 {[%emt 0:00:09] B23: Closed Sicilian: Lines without g3.} 7. d3 {[%emt 0:00:02]} O-O {[%emt 0:00:03]} 8. Be3 {[%emt 0:00:07]} (8. Bxc6 $11 bxc6 9. h3) 8... Ng4 {[%emt 0:00:39]} ({Better is} 8... Nd4 $15) 9. Qd2 $2 {[%emt 0:00:33][%mdl 8192]} (9. Bd2 $11 {and White has nothing to worry.}) 9... Nxe3 $19 {[%emt 0:00:07]} 10. Qxe3 {[%emt 0:00:02]} Nd4 {[%emt 0:00:04] [#]} (10... Bd4 $19 {is more deadly.} 11. Nxd4 cxd4) 11. Rac1 $146 {[%emt 0:00:13]} (11. Qd2 $17 {was worth a try.}) ({Predecessor:} 11. Rf2 Bg4 12. e5 Bxf3 13. gxf3 d5 14. Rd1 a6 15. Ba4 Rc8 16. a3 e6 17. Rg2 Qh4 18. Rg4 Qh3 19. Rg3 Qh4 20. Rg4 Qh3 21. Rg3 {½-½ (21) Krauss,D (1880)-Thoue,J (1702) Avoine 2006}) 11... Qb6 {[%emt 0:01:04]} 12. Bc4 {[%emt 0:00:23]} Qxb2 {[%emt 0:00:34]} 13. Ne2 {[%emt 0:00:15]} (13. Nd5 {keeps fighting.} e6 14. Ne7+ Kh8 15. Kh1) 13... b5 {[%emt 0:01:44]} 14. Bd5 {[%emt 0:01:26]} Rb8 {[%emt 0:00:02]} ({And not} 14... Nxc2 15. Qd2 Nb4 16. Qxb2 (16. Bxa8 Qxd2 17. Nxd2 Bg4 $17) 16... Bxb2 17. Bxa8 $11) (14... Nxf3+ $19 15. Qxf3 Rb8) 15. Kh1 $2 {[%emt 0:00:09][%mdl 8192] White does not recover from this.} (15. Nexd4 $17 {is more resistant.} cxd4 16. Qf2) 15... Nxc2 {[%emt 0:00:34]} 16. Qd2 {[%emt 0:00:49]} Nb4 {[%emt 0:00:02]} 17. Qe3 {[%emt 0:00:09]} Nxd5 {[%emt 0:00:21]} 18. exd5 {[%emt 0:00:04]} Qxa2 {[%emt 0:00:24]} 19. Qxe7 {[%emt 0:00:08]} Qxd5 {[%emt 0:00:10]} 20. Qxa7 {[%emt 0:00:18]} Bf5 {[%emt 0:00:21] [#] Strongly threatening ...Ra8.} 21. Nc3 {[%emt 0:00:09]} Qxd3 {[%emt 0:00:08]} 22. Rfd1 {[%emt 0:00:06]} Qe3 {[%emt 0:00:31]} 23. Nd5 {[%emt 0:00:10]} Qe6 {[%emt 0:00:08]} 24. Ne7+ {[%emt 0:00:12]} Kh8 {[%emt 0:00:05]} 25. Re1 $2 {[%emt 0:00:06]} (25. Ng5 Ra8 26. Nxe6 Rxa7 27. Nxf5 fxe6 28. Nxd6) 25... Qd7 {[%emt 0:00:11]} 26. Qa3 {[%emt 0:00:28]} b4 {[%emt 0:00:22][%cal Bb5b4,Bb4b3,Bb3b2][%mdl 32]} 27. Qb3 {[%emt 0:00:09]} Be6 {[%emt 0:00:04]} 28. Nd5 Qc6 {[%emt 0:00:24]} 29. Red1 {[%emt 0:00:09]} Rfc8 {[%emt 0:00:28] [#] And now ...c4 would win.} 30. Ng5 {[%emt 0:00:08]} c4 {[%emt 0:00:25]} 31. Qf3 {[%emt 0:00:16]} b3 {[%emt 0:00:20]} 32. Nxe6 {[%emt 0:00:03]} fxe6 {[%emt 0:00:02]} 33. Ne7 {[%emt 0:00:03]} Qxf3 {[%emt 0:00:01]} 34. gxf3 {[%emt 0:00:01]} Rc7 {[%emt 0:00:04]} 35. Nxg6+ {[%emt 0:00:05]} hxg6 {[%emt 0:00:01] Black mates.} 36. Rxd6 {[%emt 0:00:01]} b2 {[%emt 0:00:02]} 37. Rb1 {[%emt 0:00:01]} c3 {[%emt 0:00:01][%cal Bc4c3,Bc3c2][%mdl 32]} 38. Rxe6 {[%emt 0:00:05]} c2 {[%emt 0:00:00] Weighted Error Value: White=1.16/Black=0.40} 0-1

[Event "27th Sharjah International Rapid Chess-c"]
[Site "Sharjah"]
[Date "2022.04.07"]
[Round "5.33"]
[White "Alkhour, Seifedin"]
[Black "Mohamed, Yousuf Al-Ali"]
[Result "1-0"]
[ECO "C44"]
[WhiteElo "1327"]
[BlackElo "1267"]
[Annotator "NA"]
[PlyCount "41"]
[EventDate "2022.04.07"]
[EventType "rapid"]
[EventCountry "UAE"]
[SourceTitle "playchess.com"]
[Source "ChessBase"]
[SourceQuality "1"]
[TimeControl "600+3"]

1. e4 {[%emt 0:00:02]} e5 {[%emt 0:00:00]} 2. Nf3 {[%emt 0:00:01]} Nc6 {[%emt 0:00:01]} 3. d4 {[%emt 0:00:01]} exd4 {[%emt 0:00:01]} 4. Nxd4 {[%emt 0:00:01]} Nf6 {[%emt 0:00:01]} 5. Nc3 {[%emt 0:00:06]} Bb4 {[%emt 0:00:02]} 6. Nxc6 {[%emt 0:00:30]} bxc6 {[%emt 0:00:01]} 7. Bd3 {[%emt 0:00:07]} O-O {[%emt 0:00:02]} 8. Bg5 {[%emt 0:00:03]} Re8 {[%emt 0:00:27]} 9. O-O {[%emt 0:00:03]} d5 {[%emt 0:00:01]} 10. exd5 {[%emt 0:00:20]} Bxc3 {[%emt 0:00:03]} 11. bxc3 {[%emt 0:00:04]} cxd5 {[%emt 0:00:01]} 12. Qf3 {[%emt 0:00:10]} Be6 {[%emt 0:00:24]} 13. Rad1 {[%emt 0:00:06]} c6 {[%emt 0:00:06]} 14. Rfe1 {[%emt 0:00:15]} h6 {[%emt 0:00:28]} 15. Bh4 {[%emt 0:00:16]} g5 {[%emt 0:00:41]} 16. Bg3 {[%emt 0:00:05]} Bg4 {[%emt 0:00:04]} 17. Rxe8+ {[%emt 0:00:16]} Qxe8 {[%emt 0:00:02]} 18. Qxf6 {[%emt 0:00:08]} Bxd1 {[%emt 0:00:05]} 19. Be5 {[%emt 0:00:06]} Kf8 {[%emt 0:00:41]} 20. Qxh6+ {[%emt 0:00:11]} Ke7 {[%emt 0:00:29]} 21. Qd6# 1-0